fUSD/lending_fUSD_20250108
["ID","MTS","AMOUNT","RATE_DAILY","PERIOD"]
[348113846,1736327433916,-500.0,0.00010269,2]
[348113847,1736327433926,-500.0,0.00010269,2]
[348113848,1736327433936,-500.0,0.00010269,2]
[348113849,1736327433945,-500.0,0.00010269,2]
[348113850,1736327433955,-500.0,0.00010269,2]
[348113851,1736327433965,-500.0,0.00010269,2]
[348113852,1736327433975,-500.0,0.00010269,2]
[348113853,1736327433985,-500.0,0.00010269,2]
[348113854,1736327433995,-500.0,0.00010269,2]
[348113855,1736327434006,-500.0,0.00010269,2]
[348113856,1736327434016,-500.0,0.00010269,2]
[348113857,1736327434026,-500.0,0.00010269,2]
[348113858,1736327434035,-500.0,0.00010269,2]
[348113859,1736327434045,-500.0,0.00010269,2]
[348113860,1736327434054,-597.85,0.00010269,2]
[348113861,1736327434063,-550.2,0.00010269,2]
[348113862,1736327434073,-490.13,0.00010269,2]
[348113863,1736327434082,-500.0,0.00010269,2]
[348113864,1736327434096,-500.0,0.00010269,2]
[348113865,1736327434106,-500.0,0.00010269,2]
[348113866,1736327434116,-500.0,0.00010269,2]
[348113867,1736327434125,-500.0,0.00010269,2]
[348113868,1736327434137,-500.0,0.00010269,2]
[348113869,1736327434147,-500.0,0.00010269,2]
[348113870,1736327434156,-500.0,0.00010269,2]
[348113871,1736327434167,-500.0,0.00010269,2]
[348113872,1736327434176,-500.0,0.00010269,2]
[348113873,1736327434187,-500.0,0.00010269,2]
[348113874,1736327434196,-503.51380683,0.00010269,2]
[348113875,1736327434206,-500.0,0.00010269,2]
[348113876,1736327434216,-500.0,0.00010269,2]
[348113877,1736327434447,-500.0,0.00010269,2]
[348113878,1736327434458,-370.00057442,0.00010269,2]
[348113879,1736327434480,-129.99942558,0.00010269,2]
[348113880,1736327434491,-500.0,0.00010269,2]
[348113881,1736327434500,-500.0,0.00010269,2]
[348113882,1736327434510,-500.0,0.00010269,2]
[348113883,1736327434519,-2774.49,0.00010269,2]
[348113884,1736327434529,-186.38332708,0.00010269,2]
[348113885,1736327434539,-500.0,0.00010269,2]
[348113886,1736327434548,-3555.73,0.00010269,2]
[348113887,1736327434558,-2226.84,0.00010269,2]
[348113888,1736327434568,-500.0,0.00010269,2]
[348113889,1736327434578,-500.0,0.00010269,2]
[348113890,1736327434587,-500.0,0.00010269,2]
[348113891,1736327434597,-1089.56,0.00010269,2]
[348113892,1736327434607,-500.0,0.00010269,2]
[348113893,1736327434616,-500.0,0.00010269,2]
[348113894,1736327434626,-627.1,0.00010269,2]
[348113895,1736327434636,-2329.79,0.00010269,2]
[348113896,1736327434645,-500.0,0.00010269,2]
[348113897,1736327434656,-500.0,0.00010269,2]
[348113898,1736327434665,-833.62,0.00010269,2]
[348113899,1736327434675,-500.0,0.00010269,2]
[348113900,1736327434685,-500.0,0.00010269,2]
[348113901,1736327434694,-500.0,0.00010269,2]
[348113902,1736327434704,-1275.87,0.00010269,2]
[348113903,1736327434714,-500.0,0.00010269,2]
[348113904,1736327434724,-500.0,0.00010269,2]
[348113905,1736327434734,-500.0,0.00010269,2]
[348113906,1736327434744,-500.0,0.00010269,2]
[348113907,1736327434753,-500.0,0.00010269,2]
[348113908,1736327434763,-2555.94,0.00010269,2]
[348113909,1736327434772,-500.0,0.00010269,2]
[348113910,1736327434782,-500.0,0.00010269,2]
[348113911,1736327434792,-500.0,0.00010269,2]
[348113912,1736327434802,-714.55,0.00010269,2]
[348113913,1736327434812,-500.0,0.00010269,2]
[348113914,1736327434822,-500.0,0.00010269,2]
[348113915,1736327434832,-502.62,0.00010269,2]
[348113916,1736327434842,-500.0,0.00010269,2]
[348113917,1736327434851,-500.0,0.00010269,2]
[348113918,1736327434861,-500.0,0.00010269,2]
[348113919,1736327434871,-1273.5,0.00010269,2]
[348113920,1736327434880,-500.0,0.00010269,2]
[348113921,1736327434889,-500.0,0.00010269,2]
[348113922,1736327434899,-500.0,0.00010269,2]
[348113923,1736327434908,-500.0,0.00010269,2]
[348113924,1736327434917,-1024.61,0.00010269,2]
[348113925,1736327434927,-500.0,0.00010269,2]
[348113926,1736327434937,-500.0,0.00010269,2]
[348113927,1736327434946,-500.0,0.00010269,2]
[348113928,1736327434955,-500.0,0.00010269,2]
[348113929,1736327434964,-550.22,0.00010269,2]
[348113930,1736327434975,-500.0,0.00010269,2]
[348113931,1736327434984,-500.0,0.00010269,2]
[348113932,1736327434994,-500.0,0.00010269,2]
[348113933,1736327435003,-500.0,0.00010269,2]
[348113934,1736327435013,-500.0,0.00010269,2]
[348113935,1736327435022,-500.0,0.00010269,2]
[348113936,1736327435032,-500.0,0.00010269,2]
[348113937,1736327435043,-500.0,0.00010269,2]
[348113938,1736327435052,-1060.17,0.00010269,2]
[348113939,1736327435062,-500.0,0.00010269,2]
[348113940,1736327435071,-500.0,0.00010269,2]
[348113941,1736327435080,-616.66,0.00010269,2]
[348113942,1736327435090,-500.0,0.00010269,2]
[348113943,1736327435102,-500.0,0.00010269,2]
[348113944,1736327435112,-500.0,0.00010269,2]
[348113945,1736327435122,-500.0,0.00010269,2]
[348113946,1736327435132,-42129.93389016,0.00010269,2]
[348113947,1736327435144,-612.23105833,0.00010269,2]
[348113948,1736327435162,-10395.15865238,0.00010269,2]
[348113949,1736327437726,-167.78811425,0.00010268,2]
[348113950,1736327437736,-1192.93555097,0.00010269,2]
[348113951,1736327437748,-18696.91103926,0.00010269,2]
[348113952,1736327437836,-70365.06582902,0.00010269,2]
[348113953,1736327437891,-39070.47311493,0.00010269,2]
[348113954,1736327437948,-654.06454835,0.00010269,2]
[348114266,1736327442791,-500.0,0.00010268,2]
[348114268,1736327442804,-500.0,0.00010268,2]
[348114270,1736327442814,-500.0,0.00010269,2]
[348114273,1736327442824,-500.0,0.00010269,2]
[348114275,1736327442835,-1642.03,0.00010269,2]
[348114276,1736327442844,-8017.96997825,0.00010269,2]
[348114280,1736327442867,-1838.3197628,0.00010269,2]
[348114284,1736327442879,-83464.37523484,0.00010269,2]
[348114286,1736327442889,-500.0,0.0001027,2]
[348114288,1736327442899,-500.0,0.0001027,2]
[348114290,1736327442908,-169.34037417,0.0001027,2]
[348114292,1736327442918,-500.0,0.0001027,2]
[348114294,1736327442927,-249.36155622,0.0001027,2]
[348114296,1736327442936,-500.0,0.0001027,2]
[348114298,1736327442945,-500.0,0.0001027,2]
[348114300,1736327442959,-500.0,0.0001027,2]
[348114302,1736327442968,-500.0,0.0001027,2]
[348114304,1736327442981,-500.0,0.0001027,2]
[348114306,1736327442991,-500.0,0.0001027,2]
[348114308,1736327443000,-543.03940872,0.0001027,2]
[348114310,1736327443010,-495.08137182,0.0001027,2]
[348114312,1736327443020,-500.0,0.0001027,2]
[348114314,1736327443029,-500.0,0.0001027,2]
[348114316,1736327443039,-500.0,0.0001027,2]
[348114318,1736327443048,-500.0,0.0001027,2]
[348114320,1736327443057,-500.0,0.0001027,2]
[348114322,1736327443067,-500.0,0.0001027,2]
[348114324,1736327443076,-500.0,0.0001027,2]
[348114326,1736327443085,-552.23,0.0001027,2]
[348114328,1736327443097,-500.0,0.0001027,2]
[348114330,1736327443107,-500.0,0.0001027,2]
[348114332,1736327443116,-500.0,0.0001027,2]
[348114334,1736327443125,-500.0,0.0001027,2]
[348114336,1736327443135,-500.0,0.0001027,2]
[348114337,1736327443144,-500.0,0.0001027,2]
[348114339,1736327443153,-500.0,0.0001027,2]
[348114341,1736327443163,-500.0,0.0001027,2]
[348114343,1736327443175,-500.0,0.0001027,2]
[348114345,1736327443186,-500.0,0.0001027,2]
[348114347,1736327443195,-500.0,0.0001027,2]
[348114349,1736327443204,-500.0,0.0001027,2]
[348114351,1736327443213,-500.0,0.0001027,2]
[348114353,1736327443222,-500.0,0.0001027,2]
[348114355,1736327443231,-606.85,0.0001027,2]
[348114357,1736327443241,-500.0,0.0001027,2]
[348114359,1736327443251,-500.0,0.0001027,2]
[348114361,1736327443261,-500.0,0.0001027,2]
[348114363,1736327443271,-500.0,0.0001027,2]
[348114365,1736327443280,-500.0,0.0001027,2]
[348114367,1736327443291,-500.0,0.0001027,2]
[348114369,1736327443301,-347.95411251,0.0001027,2]
[348114371,1736327443311,-500.0,0.0001027,2]
[348114373,1736327443320,-500.0,0.0001027,2]
[348114375,1736327443329,-500.0,0.0001027,2]
[348114377,1736327443339,-500.0,0.0001027,2]
[348114379,1736327443349,-500.0,0.0001027,2]
[348114381,1736327443358,-500.0,0.0001027,2]
[348114383,1736327443368,-500.0,0.0001027,2]
[348114385,1736327443377,-500.0,0.0001027,2]
[348114386,1736327443385,-500.0,0.0001027,2]
[348114388,1736327443395,-500.0,0.0001027,2]
[348114391,1736327443404,-500.0,0.0001027,2]
[348114393,1736327443415,-500.0,0.0001027,2]
[348114395,1736327443425,-500.0,0.0001027,2]
[348114397,1736327443434,-500.0,0.0001027,2]
[348114399,1736327443444,-500.0,0.0001027,2]
[348114401,1736327443454,-500.0,0.0001027,2]
[348114403,1736327443463,-500.0,0.0001027,2]
[348114405,1736327443472,-626.02,0.0001027,2]
[348114406,1736327443482,-674.78,0.0001027,2]
[348114409,1736327443492,-500.0,0.0001027,2]
[348114411,1736327443503,-647.85,0.0001027,2]
[348114413,1736327443513,-500.0,0.0001027,2]
[348114415,1736327443523,-618.85,0.0001027,2]
[348114417,1736327443538,-500.0,0.0001027,2]
[348114419,1736327443547,-500.0,0.0001027,2]
[348114420,1736327443557,-500.0,0.0001027,2]
[348114422,1736327443566,-500.0,0.0001027,2]
[348114424,1736327443576,-2528.09,0.0001027,2]
[348114426,1736327443585,-500.0,0.00010271,2]
[348114429,1736327443595,-582.38179807,0.00010271,2]
[348114431,1736327443604,-500.0,0.00010271,2]
[348114433,1736327443616,-500.0,0.00010271,2]
[348114435,1736327443625,-500.0,0.00010271,2]
[348114437,1736327443637,-588.33899356,0.00010271,2]
[348114439,1736327443646,-500.0,0.00010271,2]
[348114441,1736327443656,-500.0,0.00010271,2]
[348114443,1736327443665,-181.94,0.00010271,2]
[348114445,1736327443674,-435.0634298,0.00010271,2]
[348114447,1736327443683,-500.0,0.00010271,2]
[348114448,1736327443693,-500.0,0.00010271,2]
[348114450,1736327443703,-500.0,0.00010271,2]
[348114452,1736327443713,-500.0,0.00010271,2]
[348114454,1736327443722,-500.0,0.00010271,2]
[348114456,1736327443732,-500.0,0.00010271,2]
[348114458,1736327443742,-500.0,0.00010271,2]
[348114460,1736327443752,-500.0,0.00010271,2]
[348114462,1736327443762,-500.0,0.00010271,2]
[348114464,1736327443772,-500.0,0.00010271,2]
[348114488,1736327443783,-500.0,0.00010271,2]
[348114489,1736327444000,-500.0,0.00010271,2]
[348114490,1736327444009,-500.0,0.00010271,2]
[348114491,1736327444019,-500.0,0.00010271,2]
[348114492,1736327444028,-500.0,0.00010271,2]
[348114493,1736327444038,-500.0,0.00010271,2]
[348114494,1736327444046,-500.0,0.00010271,2]
[348114495,1736327444055,-512.73759222,0.00010271,2]
[348114496,1736327444064,-500.0,0.00010271,2]
[348114497,1736327444073,-330.06175415,0.00010271,2]
[348114498,1736327444082,-487.54172076,0.00010271,2]
[348114500,1736327444093,-500.0,0.00010271,2]
[348114502,1736327444104,-500.0,0.00010271,2]
[348114504,1736327444113,-500.0,0.00010271,2]
[348114506,1736327444122,-500.0,0.00010271,2]
[348114508,1736327444130,-500.0,0.00010271,2]
[348114510,1736327444141,-500.0,0.00010271,2]
[348114511,1736327444150,-500.0,0.00010271,2]
[348114514,1736327444161,-500.0,0.00010272,2]
[348114516,1736327444171,-1911.91,0.00010272,2]
[348114518,1736327444182,-1004.01,0.00010272,2]
[348114520,1736327444191,-500.0,0.00010272,2]
[348114522,1736327444201,-500.0,0.00010272,2]
[348114524,1736327444210,-500.0,0.00010272,2]
[348114526,1736327444219,-500.0,0.00010272,2]
[348114527,1736327444229,-758.87,0.00010272,2]
[348114529,1736327444239,-1017.65,0.00010272,2]
[348114531,1736327444249,-956.66,0.00010272,2]
[348114533,1736327444259,-944.67,0.00010272,2]
[348114535,1736327444269,-2403.44,0.00010272,2]
[348114537,1736327444278,-1512.91,0.00010272,2]
[348114539,1736327444287,-500.0,0.00010272,2]
[348114541,1736327444297,-500.0,0.00010272,2]
[348114543,1736327444307,-500.0,0.00010272,2]
[348114545,1736327444317,-1000.0,0.00010272,2]
[348114547,1736327444326,-1768.99,0.00010273,2]
[348114549,1736327444335,-1120.31,0.00010273,2]
[348114551,1736327444344,-963.56589007,0.000103,2]
[348114553,1736327444353,-108025.13942694,0.000103,2]
[348114555,1736327444362,-607.0,0.000103,2]
[348114557,1736327444371,-151048.95900206,0.00010343,2]
[348114559,1736327444381,-2000.0,0.00010343,2]
[348114561,1736327444390,-200.0,0.00010343,2]
[348114563,1736327444400,-2000.0,0.00010343,2]
[348114565,1736327444410,-200.0,0.00010343,2]
[348114567,1736327444419,-200.0,0.00010343,2]
[348114569,1736327444429,-3000.0,0.00010343,2]
[348114571,1736327444439,-200.0,0.00010343,2]
[348114573,1736327444449,-201.31231359,0.00010355,2]
[348114575,1736327444459,-500.0,0.00010399,2]
[348114577,1736327444468,-3877.9090686,0.000104,2]
[348114579,1736327444478,-6770.74821366,0.000104,2]
[348114581,1736327444487,-194.89796522,0.000104,2]
[348114583,1736327444497,-1000.0,0.00010411,2]
[348114585,1736327444506,-1000.0,0.00010411,2]
[348114587,1736327444515,-1000.0,0.00010411,2]
[348114589,1736327444524,-1000.0,0.00010411,2]
[348114591,1736327444533,-1000.0,0.00010411,2]
[348114593,1736327444543,-1000.0,0.00010411,2]
[348114595,1736327444552,-1000.0,0.00010411,2]
[348114597,1736327444561,-1000.0,0.00010411,2]
[348114599,1736327444571,-965.0,0.00010411,2]
[348114601,1736327444580,-429.70395169,0.00010423,2]
[348114603,1736327444589,-826.05,0.00010431,2]
[348114605,1736327444599,-201.31231359,0.00010445,2]
[348114607,1736327444610,-406.72548586,0.00010446,2]
[348114609,1736327444619,-200.0,0.00010446,2]
[348114611,1736327444628,-2000.0,0.00010446,2]
[348114613,1736327444638,-200.0,0.00010446,2]
[348114615,1736327444650,-200.0,0.00010446,2]
[348114617,1736327444660,-200.0,0.00010446,2]
[348114619,1736327444670,-8275.0,0.00010466,2]
[348114621,1736327444680,-163.08254824,0.00010473,2]
[348114623,1736327444690,-850.52,0.00010485,2]
[348114625,1736327444699,-845.30637334,0.0001049,2]
[348114627,1736327444708,-700.68383634,0.0001049,2]
[348114629,1736327444717,-700.68383634,0.0001049,2]
[348114631,1736327444727,-700.68383634,0.0001049,2]
[348114633,1736327444737,-184.80969112,0.00010493,2]
[348114634,1736327444747,-1097.67,0.00010497,2]
[348114637,1736327444757,-865.19,0.00010497,2]
[348114638,1736327444766,-835.633536,0.00010497,2]
[348114641,1736327444776,-156.273654,0.00010497,2]
[348114643,1736327444786,-575.696994,0.00010497,2]
[348114645,1736327444795,-2982.5,0.00010497,2]
[348114647,1736327444805,-157.68863,0.00010497,2]
[348114649,1736327444815,-156.37745,0.00010497,2]
[348114651,1736327444825,-500.0,0.00010497,2]
[348114652,1736327444834,-500.0,0.00010497,2]
[348114654,1736327444844,-500.0,0.00010497,2]
[348114656,1736327444853,-500.0,0.00010497,2]
[348114658,1736327444861,-2152.18,0.00010497,2]
[348114660,1736327444871,-655.37,0.00010497,2]
[348114662,1736327444880,-500.0,0.00010497,2]
[348114664,1736327444889,-500.0,0.00010497,2]
[348114666,1736327444899,-407.78438877,0.00010497,2]
[348114668,1736327444909,-676.91,0.00010497,2]
[348114670,1736327444919,-1017.06,0.00010497,2]
[348114672,1736327444928,-953.34,0.00010497,2]
[348114674,1736327444938,-578.02,0.00010497,2]
[348114676,1736327444947,-1788.66,0.00010497,2]
[348114678,1736327444956,-872.94,0.00010497,2]
[348114680,1736327444965,-2982.46,0.00010497,2]
[348114682,1736327444975,-2792.08,0.00010497,2]
[348114684,1736327444984,-500.0,0.00010497,2]
[348114686,1736327444994,-1268.51,0.00010497,2]
[348114688,1736327445003,-1078.4,0.00010498,2]
[348114690,1736327445012,-609.34,0.00010498,2]
[348114692,1736327445021,-761.45,0.00010498,2]
[348114694,1736327445032,-5458.65,0.00010498,2]
[348114696,1736327445041,-744.28,0.00010498,2]
[348114698,1736327445050,-1918.12,0.00010498,2]
[348114700,1736327445060,-885.85,0.00010498,2]
[348114702,1736327445069,-2659.22,0.00010498,2]
[348114704,1736327445078,-957.82,0.00010498,2]
[348114706,1736327445087,-1594.73,0.00010498,2]
[348114708,1736327445098,-882.14,0.00010498,2]
[348114710,1736327445107,-542.74,0.00010498,2]
[348114712,1736327445116,-500.0,0.00010498,2]
[348114714,1736327445125,-500.0,0.00010498,2]
[348114716,1736327445134,-1901.57,0.00010498,2]
[348114718,1736327445145,-966.32,0.00010498,2]
[348114720,1736327445155,-500.0,0.00010498,2]
[348114722,1736327445164,-500.0,0.00010498,2]
[348114724,1736327445174,-500.0,0.00010498,2]
[348114726,1736327445184,-618.93,0.00010498,2]
[348114728,1736327445194,-15639.25,0.00010499,2]
[348114730,1736327445203,-5458.65,0.00010499,2]
[348114732,1736327445213,-5458.65,0.00010499,2]
[348114734,1736327445222,-5458.65,0.00010499,2]
[348114735,1736327445231,-5458.65,0.00010499,2]
[348114737,1736327445240,-5458.65,0.00010499,2]
[348114739,1736327445252,-5458.65,0.00010499,2]
[348114742,1736327445263,-5458.65,0.00010499,2]
[348114743,1736327445272,-3170.06012537,0.00010499,2]
[348114746,1736327445288,-2288.58987463,0.00010499,2]
[348114748,1736327445297,-1231.51312937,0.00010499,2]
[348114752,1736327445324,-500.0,0.00010269,2]
[348114754,1736327445334,-4227.13687063,0.00010499,2]
[348114756,1736327445343,-5458.65,0.00010499,2]
[348114758,1736327445352,-5458.65,0.00010499,2]
[348114760,1736327445362,-5458.65,0.00010499,2]
[348114762,1736327445371,-5458.65,0.00010499,2]
[348114764,1736327445381,-5458.65,0.00010499,2]
[348114766,1736327445390,-5458.65,0.00010499,2]
[348114768,1736327445400,-5458.65,0.00010499,2]
[348114770,1736327445410,-5458.65,0.00010499,2]
[348114772,1736327445419,-5458.65,0.00010499,2]
[348114774,1736327445430,-5458.65,0.00010499,2]
[348114776,1736327445440,-5458.65,0.00010499,2]
[348114778,1736327445449,-1934.55900868,0.00010499,2]
[348114780,1736327445461,-3524.09099132,0.00010499,2]
[348114782,1736327445470,-5458.65,0.00010499,2]
[348114784,1736327445480,-5458.88118276,0.00010499,2]
[348114786,1736327445491,-500.0,0.00010499,2]
[348114788,1736327445501,-500.0,0.00010499,2]
[348114790,1736327445511,-500.0,0.00010499,2]
[348114792,1736327445521,-1064.0,0.000105,2]
[348114794,1736327445530,-9394.37782381,0.000105,5]
[348114798,1736327445559,-14208.67603151,0.000105,5]
[348114800,1736327445571,-125602.08710201,0.000105,5]
[348114802,1736327445583,-1302.1840501,0.000105,5]
[348114805,1736327445599,-628.211996,0.000105,5]
[348114807,1736327445610,-3476.17797629,0.000105,5]
[348114811,1736327445621,-500.0,0.000105,5]
[348114848,1736327445961,-389.5807845,0.00010269,2]
[348114851,1736327445973,-113.9092155,0.00010269,2]
[348114853,1736327445984,-500.0,0.00010498,2]
[348114854,1736327445994,-7307.20511896,0.000105,5]
[348114858,1736327446016,-4975.52936314,0.000105,5]
[348114860,1736327446028,-1922.39950428,0.000105,5]
[348114863,1736327446044,-265.47205391,0.000105,5]
[348114866,1736327446066,-181969.33869484,0.000105,5]
[348114897,1736327487946,10000.0,0.000123,29]
[348114899,1736327558497,10000.0,0.00012122,24]
[348114900,1736327589510,40000.0,0.00012122,24]
[348114901,1736327652612,50000.0,0.00012122,24]
[348114902,1736327782550,50000.0,0.00012122,24]
[348114903,1736327936641,-765.99,8.219e-05,2]
[348114904,1736327936662,-832.15,9.529e-05,2]
[348114905,1736327936685,-188.75,9.598e-05,2]
[348114906,1736327936707,-2548.42,9.996e-05,2]
[348114907,1736327936728,-192.0,9.997e-05,2]
[348114908,1736327936751,-150.0,9.997e-05,2]
[348114909,1736327936774,-865.95,9.998e-05,2]
[348114910,1736327936795,-1386.84,9.998e-05,2]
[348114911,1736327936816,-1000.0,9.998e-05,2]
[348114912,1736327936838,-500.0,9.998e-05,2]
[348114913,1736327936859,-500.0,9.998e-05,2]
[348114914,1736327936883,-1621.58,9.998e-05,2]
[348114915,1736327936905,-1026.95,9.998e-05,2]
[348114916,1736327936926,-184.03,0.0001,2]
[348114917,1736327936946,-569.95,0.00010137,2]
[348114918,1736327936966,-153.601801,0.00010216,2]
[348114919,1736327936986,-2559.362,0.00010216,2]
[348114920,1736327937007,-200.967,0.00010216,2]
[348114921,1736327937027,-500.0,0.00010268,2]
[348114922,1736327937049,-500.0,0.00010268,2]
[348114923,1736327937070,-500.0,0.00010268,2]
[348114924,1736327937091,-500.0,0.00010268,2]
[348114925,1736327937111,-500.0,0.00010268,2]
[348114926,1736327937132,-500.0,0.00010268,2]
[348114927,1736327937153,-500.0,0.00010268,2]
[348114928,1736327937175,-500.0,0.00010268,2]
[348114929,1736327937196,-500.0,0.00010268,2]
[348114930,1736327937217,-500.0,0.00010268,2]
[348114931,1736327937240,-500.0,0.00010268,2]
[348114932,1736327937262,-500.0,0.00010268,2]
[348114933,1736327937282,-319.07908884,0.00010268,2]
[348114934,1736327937304,-500.0,0.00010268,2]
[348114935,1736327937326,-500.0,0.00010268,2]
[348114936,1736327937347,-500.0,0.00010268,2]
[348114937,1736327937368,-500.0,0.00010268,2]
[348114938,1736327937390,-500.0,0.00010268,2]
[348114939,1736327937412,-500.0,0.00010268,2]
[348114940,1736327937434,-326.17,0.00010268,2]
[348114941,1736327937459,-500.0,0.00010268,2]
[348114942,1736327937480,-500.0,0.00010268,2]
[348114943,1736327937508,-500.0,0.00010268,2]
[348114944,1736327937531,-500.0,0.00010268,2]
[348114945,1736327937555,-500.0,0.00010268,2]
[348114946,1736327937578,-1203.730078,0.00010268,2]
[348114947,1736327937604,-500.0,0.00010268,2]
[348114948,1736327937627,-157.68863,0.00010268,2]
[348114949,1736327937649,-500.0,0.00010268,2]
[348114950,1736327937671,-500.0,0.00010268,2]
[348114951,1736327937693,-156.37745,0.00010268,2]
[348114952,1736327937714,-500.0,0.00010268,2]
[348114953,1736327937735,-500.0,0.00010268,2]
[348114954,1736327937755,-500.0,0.00010268,2]
[348114955,1736327937776,-500.0,0.00010268,2]
[348114956,1736327937796,-500.0,0.00010268,2]
[348114957,1736327937817,-500.0,0.00010268,2]
[348114958,1736327937837,-500.0,0.00010268,2]
[348114959,1736327937858,-500.0,0.00010268,2]
[348114960,1736327937880,-527.27,0.00010268,2]
[348114961,1736327937902,-500.0,0.00010268,2]
[348114962,1736327937922,-500.0,0.00010268,2]
[348114963,1736327937943,-300.7102807,0.00010268,2]
[348114964,1736327937963,-500.0,0.00010268,2]
[348114965,1736327937985,-500.0,0.00010268,2]
[348114966,1736327938005,-500.0,0.00010268,2]
[348114967,1736327938025,-500.0,0.00010268,2]
[348114968,1736327938045,-500.0,0.00010268,2]
[348114969,1736327938066,-500.0,0.00010268,2]
[348114970,1736327938087,-500.0,0.00010268,2]
[348114971,1736327938110,-500.0,0.00010268,2]
[348114972,1736327938131,-600.97,0.00010268,2]
[348114973,1736327938151,-500.0,0.00010268,2]
[348114974,1736327938173,-500.0,0.00010268,2]
[348114975,1736327938193,-500.0,0.00010268,2]
[348114976,1736327938219,-500.0,0.00010268,2]
[348114977,1736327938246,-798.89,0.00010268,2]
[348114978,1736327938268,-1222.71,0.00010268,2]
[348114979,1736327938292,-500.0,0.00010268,2]
[348114980,1736327938314,-500.0,0.00010268,2]
[348114981,1736327938335,-500.0,0.00010268,2]
[348114982,1736327938356,-500.0,0.00010268,2]
[348114983,1736327938379,-500.0,0.00010268,2]
[348114984,1736327938402,-2062.51,0.00010268,2]
[348114985,1736327938644,-714.42,0.00010268,2]
[348114986,1736327938666,-500.0,0.00010268,2]
[348114987,1736327938688,-500.0,0.00010268,2]
[348114988,1736327938710,-684.78,0.00010268,2]
[348114989,1736327938731,-500.0,0.00010268,2]
[348114990,1736327938754,-500.0,0.00010268,2]
[348114991,1736327938775,-500.0,0.00010268,2]
[348114992,1736327938795,-500.0,0.00010268,2]
[348114993,1736327938817,-1220.44,0.00010268,2]
[348114994,1736327938839,-500.0,0.00010268,2]
[348114995,1736327938860,-500.0,0.00010268,2]
[348114996,1736327938882,-981.92,0.00010268,2]
[348114997,1736327938905,-500.0,0.00010268,2]
[348114998,1736327938929,-500.0,0.00010268,2]
[348114999,1736327938952,-500.0,0.00010268,2]
[348115000,1736327938973,-500.0,0.00010268,2]
[348115001,1736327938993,-500.0,0.00010268,2]
[348115002,1736327939014,-500.0,0.00010268,2]
[348115003,1736327939034,-628.06,0.00010268,2]
[348115004,1736327939056,-348.77206275,0.00010268,2]
[348115005,1736327939077,-500.0,0.00010268,2]
[348115006,1736327939098,-500.0,0.00010268,2]
[348115007,1736327939120,-500.0,0.00010268,2]
[348115008,1736327939141,-500.0,0.00010268,2]
[348115009,1736327939161,-590.96,0.00010268,2]
[348115010,1736327939182,-500.0,0.00010268,2]
[348115011,1736327939202,-500.0,0.00010268,2]
[348115012,1736327939223,-500.0,0.00010268,2]
[348115013,1736327939245,-556.12282881,0.00010268,2]
[348115014,1736327939266,-500.0,0.00010268,2]
[348115015,1736327939288,-500.0,0.00010268,2]
[348115016,1736327939309,-500.0,0.00010268,2]